Cogmind - Beta 15 @@@ ROGUE MODE // 2025.07.18 @ 20:09:50 Player: jumpy Result: Destroyed by G-34 Mercenary with Small Laser Performance ------------- Evolutions (1) 500 Regions Visited (2) 400 Robots Destroyed (32) 160 Value Destroyed (529) 529 Prototype IDs (2) 40 Alien Tech Used (0) 0 Bonus (0) 0 TOTAL SCORE: 1629 Bonus ------- None Cogmind --------- Core Integrity 0/400 Matter 155/300 Energy 100/100 System Corruption 0% Temperature Cool (6) Movement Core (400) Ox7 Location -9/Materials Parts ------- > --- POWER (1) -------- (None) > --- PROPULSION (4) --- (None) > --- UTILITY (2) ------ Large Storage Unit Melee Analysis Suite > --- WEAPON (2) ------- Axe > --- INVENTORY (15) --- Nuclear Core Nuclear Core Improved Hover Unit Improved Hover Unit Improved Hover Unit Improved Hover Unit Improved Terrain Scanner Seismic Detector ECM Suite Advanced Beam Cannon Mining Laser Maul Axe Peak State ------------ > --- POWER ------------ Cooled Ion Engine > --- PROPULSION ------- Improved Hover Unit Improved Hover Unit Improved Hover Unit Improved Hover Unit > --- UTILITY ---------- Large Storage Unit Melee Analysis Suite > --- WEAPON ----------- Axe > --- INVENTORY -------- Nuclear Core Nuclear Core Improved Hover Unit Improved Hover Unit Improved Hover Unit Improved Hover Unit Improved Terrain Scanner Seismic Detector ECM Suite Advanced Beam Cannon Grenade Launcher Mining Laser Maul Axe [Rating: 20] Favorites ----------- Power Ion Engine Engine Ion Engine Propulsion Light Treads Treads Light Treads Hover Unit Improved Hover Unit Utility Seismic Detector Device Seismic Detector Storage Small Storage Unit Processor Melee Analysis Suite Weapon Light Assault Rifle Energy Cannon Advanced Beam Cannon Ballistic Gun Light Assault Rifle Launcher Grenade Launcher Impact Weapon Maul Slashing Weapon Axe Build | -11 -10 -9 ------- Run | Yrd Mat Mat Slots Evolved 2 | . . 2 Power . | . . . Propulsion 2 | . . 2 Utility . | . . . Weapon . | . . . Parts Attached 21 | 7 2 12 Power 3 | 1 . 2 Engine 3 | 1 . 2 Core . | . . . Reactor . | . . . Propulsion 7 | 2 . 5 Treads 2 | 2 . . Leg . | . . . Wheel . | . . . Hover 5 | . . 5 Flight . | . . . Utility 4 | 2 1 1 Device 1 | 1 . . Storage 2 | 1 1 . Processor 1 | . . 1 Hackware . | . . . Protection . | . . . Artifact . | . . . Weapon 7 | 2 1 4 Energy Gun . | . . . Energy Cannon 1 | . . 1 Ballistic Gun 3 | 2 1 . Ballistic Cannon . | . . . Launcher 1 | . . 1 Special Weapon . | . . . Impact Weapon 1 | . . 1 Slashing Weapon 1 | . . 1 Piercing Weapon . | . . . Special Melee Weapon . | . . . Unidentified Prototypes 2 | . . 2 Parts Lost 8 | . 1 7 Power 1 | . . 1 Propulsion 5 | . . 5 Utility 1 | . 1 . Weapon 1 | . . 1 Highest Loss Streak 6 | . 1 6 To Critical Strikes . | . . . Average Backups 8 | 3 9 12 Power 1 | . 1 1 Propulsion 3 | 1 4 4 Utility 1 | . 2 2 Weapon 2 | . 2 4 Tool/Special . | . . . Unused Backups 15 | 1 2 12 Power 2 | . . 2 Propulsion 6 | . 2 4 Utility 3 | . . 3 Weapon 4 | 1 . 3 Tool/Special . | . . . Average Slot Usage (%) 92 | . 99 79 Engine 12 | . 14 11 Treads 19 | . 28 3 Hover 11 | . . 34 Device 8 | . 13 . Storage 12 | . 14 11 Processor 1 | . . 3 Ballistic Gun 20 | . 28 7 Impact Weapon 1 | . . 3 Peak Build Rating 20 | 7 9 20 Average Rating 9 | 5 8 14 On Entrance 5 | . 7 8 Naked Turns . | . . . Heaviest Build 35 | 13 29 35 Greatest Support 40 | 40 40 40 Greatest Overweight (x) 11 | . . 11 Average Overweight (x) . | . . . Largest Inventory Capacity 15 | 8 15 15 Average Capacity 10 | 7 11 15 Most Carried 15 | 6 14 15 Average Carried 8 | 3 9 12 Final Capacity 15 | 8 15 15 Final Carried 14 | 6 14 13 Class Distribution -------------------- 100% | Mutant Dominant Class ---------------- Mutant | -10/Materials Mutant | -9/Materials Resources | -11 -10 -9 ----------- Run | Yrd Mat Mat Matter Collected 488 | 324 134 30 Remotely . | . . . Salvage Created 901 | 205 379 317 Parts 73 | 14 27 32 Haulers Intercepted 2 | . 1 1 Recyclers Shooed . | . . . Parts Field Recycled . | . . . Retrieved Matter . | . . . Parts Self-Destructed . | . . . Prevented . | . . . Kills | -11 -10 -9 ------- Run | Yrd Mat Mat Combat Hostiles Destroyed 21 | . 7 14 Melee 1 | . . 1 Guns 7 | . 7 . AOE 12 | . . 12 Classes Destroyed 8 | 3 2 3 Worker 1 | 1 . . Tunneler 5 | 5 . . Hauler 2 | . 1 1 Recycler 2 | 1 . 1 Watcher 1 | . . 1 Swarmer 12 | . . 12 Grunt 7 | . 7 . Sentry 2 | . . 2 Best Kill Streak 10 | 1 3 10 Combat Bots Only 8 | . 3 8 Max Kills in Single Turn 6 | 1 1 6 Gunslinging . | . . . Exploded 6 | . . 6 Melee 1 | . . 1 Uniques/NPCs Destroyed . | . . . Combat | -11 -10 -9 -------- Run | Yrd Mat Mat Hostile Shots Fired 145 | . 53 92 Missed 39 | . 12 27 Hits 106 | . 41 65 Projectile 106 | . 41 65 Critical Strikes 1 | . 1 . Damage Taken 1475 | . 580 895 Core 560 | . 154 406 Absorbed by Shields . | . . . Core Remaining (%) 69 | 100 38 . Volleys Fired 68 | 27 34 7 Largest 2 | 2 2 1 Hottest 68 | 40 40 68 Shots Fired 129 | 54 68 7 Gun 122 | 54 68 . Cannon 1 | . . 1 Launcher 6 | . . 6 Special . | . . . Kinetic 122 | 54 68 . Thermal 1 | . . 1 Explosive 6 | . . 6 Electromagnetic . | . . . Robot Hit Streak 8 | 5 8 5 Robot Miss Streak 4 | 4 4 1 Penetration Max . | . . . Secondary Targets 2 | . 2 . Max Gunslinging Chain 1 | . 1 . Shots Hit Robots 88 | 31 43 14 Core Hits 49 | 15 18 16 Critical Kills . | . . . Critical Parts Destroyed 1 | . . 1 Critical Strikes 2 | . . 2 Smash 1 | . . 1 Sever 1 | . . 1 Melee Attacks 14 | . . 14 Impact 8 | . . 8 Slashing 6 | . . 6 Piercing . | . . . Sneak Attacks 2 | . . 2 Combat Hostiles . | . . . Follow-up Attacks . | . . . Damage Inflicted 1918 | 249 457 1212 Guns 688 | 240 448 . Cannons 21 | . . 21 Explosions 780 | . . 780 Melee 400 | . . 400 Ramming 29 | 9 9 11 Kinetic 688 | 240 448 . Thermal 21 | . . 21 Explosive 780 | . . 780 Electromagnetic . | . . . Impact 151 | . . 151 Slashing 249 | . . 249 Piercing . | . . . Highest Corruption . | . . . Average Corruption . | . . . Corruption Purged . | . . . Corruption Blocked . | . . . Overload Shots . | . . . Overflow Damage 77 | . . 77 Projectiles . | . . . Explosions 4 | . . 4 Melee 73 | . . 73 Knockbacks . | . . . Impact . | . . . Kinetic . | . . . Secondary . | . . . Self-Inflicted Damage 66 | . . 66 Shots 2 | . . 2 Rammed 3 | 1 1 1 Targets Rammed 3 | 1 1 1 Kicked . | . . . Crushed . | . . . Highest Temperature 26 | . 22 26 Average Temperature 7 | . 7 8 Received Heat Transfer 555 | . 261 294 Siege Activations . | . . . Martial Activations . | . . . Shielding Activations . | . . . Robots Disrupted . | . . . Combat Hostiles . | . . . Robots Corrupted 1 | . . 1 Combat Hostiles 1 | . . 1 Parts Fried . | . . . Impact Corruptions 1 | . . 1 Robots Melted . | . . . Combat Hostiles . | . . . Parts Melted . | . . . Heat Transferred 37 | . . 37 Parts Sabotaged . | . . . Parts Stolen . | . . . Parts Stripped . | . . . Power Chain Reactions . | . . . Alert | -11 -10 -9 ------- Run | Yrd Mat Mat Maximum Alert Level 1 | . . 1 Low Security (%) 97 | 100 100 88 Level 1 2 | . . 11 Level 2 . | . . . Level 3 . | . . . Level 4 . | . . . Level 5 . | . . . High Security . | . . . Max Security . | . . . Peak Influence 288 | 5 69 288 Initial 4 | . . 4 Average 21 | . 20 50 Influence Increases 622 | 35 187 400 Destroy 0b10 Robot/C 420 | . 140 280 Destroy 0b10 Robot/NC 55 | 35 5 15 Destroy Leader 76 | . 22 54 Successful Hack 5 | . 5 . Destroy Structure 36 | . . 36 Partial Spotted 15 | . . 15 Lose Combat Pursuer 15 | . 15 . Influence Decreases 399 | 35 176 188 Entered New Map 7 | . . 7 Time Decay 312 | 35 166 111 Lost Part 80 | . 10 70 Squads Dispatched 3 | . 1 2 Investigation 1 | . 1 . Extermination . | . . . Reinforcement 2 | . . 2 Assault . | . . . Garrison . | . . . Intercept . | . . . Searches Triggered . | . . . Construction Impeded . | . . . Haulers Reinforced . | . . . Active Scanning Responses . | . . . Cargo Convoy Interrupts . | . . . Stealth | -11 -10 -9 --------- Run | Yrd Mat Mat Distress Signals 2 | . 1 1 Communications Jammed . | . . . Distress Signals . | . . . Times Spotted 41 | . 18 23 Peak Tracking Total 12 | . 5 12 Tactical Retreats 3 | . 3 . Traps | -11 -10 -9 ------- Run | Yrd Mat Mat Traps Triggered . | . . . Indirectly . | . . . Trap Hack Attempts . | . . . Triggered . | . . . Disarmed . | . . . Reprogrammed . | . . . Reused . | . . . Traps Extracted . | . . . Installed . | . . . Triggered . | . . . Machines | -11 -10 -9 ---------- Run | Yrd Mat Mat Machines Disabled . | . . . Max in Single Turn . | . . . Machines Repaired . | . . . Machines Dismantled . | . . . Machines Sabotaged . | . . . Overloaded Fab Kills . | . . . Hacking | -11 -10 -9 --------- Run | Yrd Mat Mat Machines Accessed 1 | . 1 . Terminals 1 | . 1 . Fabricators . | . . . Repair Stations . | . . . Recycling Units . | . . . Scanalyzers . | . . . Garrison Access . | . . . Total Hacks 4 | . 4 . Successful 1 | . 1 . Failed 3 | . 3 . Catastrophic . | . . . Database Lockouts . | . . . Manual 2 | . 2 . Terminals 4 | . 4 . Fabricators . | . . . Repair Stations . | . . . Recycling Units . | . . . Scanalyzers . | . . . Garrison Access . | . . . Terminal Hacks . | . . . Fabricator Hacks . | . . . Repair Station Hacks . | . . . Recycling Unit Hacks . | . . . Scanalyzer . | . . . Garrison Access Hacks . | . . . Unauthorized Hacks 1 | . 1 . Terminals 1 | . 1 . Botnet 1 | . 1 . Fabricators . | . . . Repair Stations . | . . . Recycling Units . | . . . Scanalyzers . | . . . Garrison Access . | . . . Data Cores Recovered . | . . . Used . | . . . Hacking Detections 1 | . 1 . Full Trace Events 1 | . 1 . Feedback Events . | . . . Feedback Blocked . | . . . Robot Schematics Acquired . | . . . Robots Built . | . . . Authchips . | . . . Time . | . . . Total Robot Build Rating . | . . . Part Schematics Acquired . | . . . Parts Built . | . . . Authchips . | . . . Time . | . . . Total Part Build Rating . | . . . Parts Repaired . | . . . Time . | . . . Parts Recycled . | . . . Recycled Matter . | . . . Retrieved Matter . | . . . Retrieved Components . | . . . Parts Scanalyzed . | . . . Part Schematics Acquired . | . . . Parts Damaged . | . . . Bothacking | -11 -10 -9 ------------ Run | Yrd Mat Mat Used RIF Installer . | . . . Robots Hacked . | . . . Non-combat . | . . . Combat . | . . . Robot Hacks Applied . | . . . Relay Couplers Released . | . . . Fabnet Peak Effective % . | . . . Robots Rewired . | . . . Allies Hacked . | . . . Hacks Repelled . | . . . Allies | -11 -10 -9 -------- Run | Yrd Mat Mat Total Allies . | . . . Largest Group . | . . . Highest-Rated Group . | . . . Highest-Rated Ally . | . . . Total Orders . | . . . Ally Attacks . | . . . Total Damage . | . . . Kills . | . . . Allies Corrupted . | . . . Allies Melted . | . . . Intel | -11 -10 -9 ------- Run | Yrd Mat Mat Active Infowar (turns) 765 | 196 569 . Seismic 765 | 196 569 . Robot Analysis Total . | . . . Derelict Logs Recovered . | . . . Drone Launches . | . . . Drone Recoveries . | . . . Exploration | -11 -10 -9 ------------- Run | Yrd Mat Mat Turns Passed 1316 | 395 600 321 Spaces Moved 760 | 193 300 267 Core 5 | 3 . 2 Treads 514 | 190 300 24 Legs . | . . . Wheels . | . . . Hover 241 | . . 241 Flight . | . . . Fastest Speed 48 | 50 160 48 Average Speed 134 | 158 160 87 Slowest Speed 600 | 160 160 600 Overloaded Moves . | . . . Propulsion Burnouts . | . . . Robots Hopped . | . . . Potential Cave-ins . | . . . Cave-ins Triggered . | . . . Exploration Rate (%) 32 | 10 51 36 Regions Visited 2 Branch Regions . Pre-discovered Areas . | . . . Known Exits Taken . | . . . Unknown Exits Taken 2 | 1 1 . Scrap Searched . | . . . Spaces Dug 5 | . . 5 Terrain Destroyed 40 | . . 40 Melee 5 | . . 5 Projectile . | . . . AOE 35 | . . 35 Terrain Rammed . | . . . Walls Destroyed . | . . . Machines Disabled . | . . . Actions | -11 -10 -9 --------- Run | Yrd Mat Mat Total 919 | 236 360 323 Wait 15 | . 10 5 Move 758 | 192 299 267 Hop . | . . . Pick Up 24 | 8 10 6 Fast Attach 8 | 6 . 2 Attach 9 | 1 . 8 Detach 4 | . . 4 Swap 6 | . 2 4 Drop 10 | 1 4 5 Fire 68 | 27 34 7 Melee 14 | . . 14 Ram 1 | . . 1 Kick . | . . . Crush 2 | 1 1 . Escape Stasis . | . . . Rewire . | . . . Trap . | . . . Miscellaneous . | . . . Route ------- -11/Scrapyard -10/Materials (discovered 3 exits: [*Mat] / [*Min] / [*Sub]) -9/Materials (discovered 1 exit: [*Min]) History --------- Turn | Location | Event 4 | -11/Scrapyard | Discovered new exit (range 16) 396 | -11/Scrapyard | Entered Materials 397 | -10/Materials | Build established: Mutant 639 | -10/Materials | Discovered new exit (range 16) 880 | -10/Materials | Discovered new exit (range 9) 896 | -10/Materials | Derelicts attacked the area 964 | -10/Materials | Core integrity fell below 50% 993 | -10/Materials | Discovered new exit (range 3) 996 | -10/Materials | Entered another Materials area 996 | -9/Materials | Evolved 2 slots: Propulsion x2 1253 | -9/Materials | Discovered new exit (range 13) 1281 | -9/Materials | Core integrity fell below 50% 1311 | -9/Materials | Destroyed 8 combat bots 1311 | -9/Materials | Core integrity fell below 20% 1317 | -9/Materials | Destroyed by G-34 Mercenary with Small Laser Last Messages --------------- 01298_ R-06 Scavenger collects Lgt. Assault Rifle. 01299_ K-01 Serf collects debris. 01302_ R-06 Scavenger collects Lgt. Assault Rifle. 01303_ K-01 Serf collects debris. 01304_ Imp. Hover Unit destroyed. 01305_ K-01 Serf collects debris. 01305_ R-06 Scavenger collects Lgt. Treads. 01305_ Sneak attack on R-06 Scavenger. 01305_ Destroyed Lgt. Ion Engine. 01305_ R-06 Scavenger destroyed. 01305_ R-06 Scavenger collects Flight Unit. 01307_ Imp. Hover Unit destroyed. 01308_ K-01 Serf collects debris. 01309_ R-06 Scavenger collects Lgt. Assault Rifle. 01310_ Grenade Launcher destroyed. 01311_ K-01 Serf collects debris. 01313_ Cld. Ion Engine destroyed. 01314_ K-01 Serf collects debris. 01314_ R-06 Scavenger collects Hover Unit. 01314_ K-01 Serf collects debris. Map ----- +----------------------------------------------------+ | ?????????????????????????????????????????????????? | | ?????????????????????????????????????????????????? | | ?????????????????????????????????????????????????? | | ?????????????????????????????????????????????????? | | ?????????????????????????????????????????????????? | | ?????????????????????????????????????????????????? | | ?????????????????????????????????????????????????? | | ?????????????????????????????????????????????????? | | ?????????????????????????????????????????????????? | | ?????????????????????????????????????????????????? | | ?????????????????# ??????????????????????????????? | | ?????????????????# ?????????????????????????????? | | ?????????????????# ????##+##????????????????????? | | ?????????????????# ???# #???????????????????? | | ?????????????????# #### #?######??????????? | | ?????????????????# [ #?# #?????????| | | ?????????????????+ #?# #?????????" < | | ?????????????????# #?? ?????????| | | ?????????????????# #?? ?????????? | | ?????????????????# #?? ???????????" | | ?????????????????# ##?# #???????????# | | ?????????????????# "#?# #???????????# | | ???????????####### =%[ T#?# #???????????# | | ?????????? k[! "#?# #???????????# | | ?????????????##### [%= #### #??????????## | | ?????????????????# !=@ # ##?????????# | | ?????????????????# kg [ # ###?????# | | ???????????? g Y ####### T | | ??????????? % Y r | | ??????????? ######## | | ???????????? #### # ###??????#### | | ???????????? ???##### ########???????????? | | ???????????? !! ????????###??????????????????? | | ?????????????!! ! ?????????????????????????????? | | ?????????????! ??????????????????????????????? | | ?????????????? ????????????????????????????#### | | ?????????????? ????????????????????????? | | ????????????????????????????????????????????###### | | ?????????????????????????????????????????????????# | | ?????????????????????????????????????????????????? | | ?????????????????????????????????????????????????? | | ?????????????????????????????????????????????????? | | ?????????????????????????????????????????????????? | | ?????????????????????????????????????????????????? | | ?????????????????????????????????????????????????? | | ?????????????????????????????????????????????????? | | ?????????????????????????????????????????????????? | | ?????????????????????????????????????????????????? | | ?????????????????????????????????????????????????? | | ?????????????????????????????????????????????????? | +----------------------------------------------------+ Best States ------------- Heat Dissipation 28 Energy Generation 14 Energy Capacity 280 Matter Stores 300 Matter Capacity 300 Sight Range 16 Terrain Scan Density 10 Evasion (%) 55 Melee Accuracy 5 Recoil Reduction 2 Item Schematics ----------------- None Robot Schematics ------------------ None Fabricated ------------ Nothing Repaired ---------- Nothing Alien Tech Used ----------------- None Achievements -------------- None Challenges ------------ None Game ------ Seed SwarmStasisShifter Manual? 0 Play Time 00:09:31 Cumulative 168.8 hours Start 2025.07.18 @ 20:03:04 End 2025.07.18 @ 20:09:50 Sessions 1 Manual Loads 0 Difficulty Rogue Special Mode None Game No. 414 Rogue 414 Adventurer 0 Explorer 0 Win Type - Total 7 Types 5/0/1/1/0/0/0/0/0/0 Lore% 71 Gallery% 63 Achievement% 50 Wizard Run 0 Options --------- Layout 0 ASCII 0 Keyboard 0 Movement Numpad Keybinds 0 Fullscreen 2 Font 18/Terminus Map View 76x50 Zoom Use 0% Tactical HUD 1 Map Filters NONE Filters SATURATION(100) Steam 1 RUN: db98b7b1-2ac7-493b-a666-4c366c859251